bitfinex/quotes_BTCUSD_20220213
["timestamp","ask_amount","ask_price","bid_price","bid_amount"]
[1644761759759,0.05,42701.0,42695.0,0.24970408]
[1644761759958,0.2,42701.0,42695.0,0.24970408]
[1644761760156,0.05,42701.0,42695.0,0.24970408]
[1644761760561,0.0999,42700.0,42695.0,0.24970408]
[1644761760756,0.28426013,42700.0,42695.0,0.24970408]
[1644761760957,0.0999,42696.0,42695.0,0.24970408]
[1644761761913,0.23426013,42700.0,42695.0,0.57872708]
[1644761761914,0.00025154,42699.0,42695.0,0.57872708]
[1644761762104,0.10015154,42700.0,42697.0,0.17891398]
[1644761762307,0.0013823,42712.0,42698.0,0.50793698]
[1644761762506,0.0013823,42712.0,42708.0,0.17891398]
[1644761762809,0.0013823,42712.0,42709.0,0.329023]
[1644761763003,0.0013823,42712.0,42708.0,0.05]
[1644761763004,0.0013823,42712.0,42699.0,0.00592654]
[1644761763208,0.0999,42710.0,42696.0,0.05]
[1644761763406,0.15,42708.0,42694.0,0.00053038]
[1644761763608,0.15,42708.0,42686.0,0.23741398]
[1644761763609,0.15,42698.0,42687.0,0.05]
[1644761763808,0.02108602,42699.0,42687.0,0.05]
[1644761764005,0.30069024,42701.0,42687.0,0.05]
[1644761764204,0.0999,42697.0,42687.0,0.05]
[1644761764406,0.0999,42696.0,42695.0,0.12485204]
[1644761764604,0.0999,42696.0,42686.0,0.0585]
[1644761764805,0.3002521,42700.0,42682.0,0.04760898]
[1644761765008,0.0999,42689.0,42678.0,0.17891398]
[1644761765207,0.0999,42689.0,42678.0,0.13495104]
[1644761765407,0.1995465,42684.0,42678.0,0.0395252]
[1644761765647,0.1995465,42684.0,42674.0,0.1349649]
[1644761765853,0.1995465,42684.0,42675.0,0.83922263]
[1644761766048,0.1995465,42684.0,42676.0,0.37200949]
[1644761766348,0.1995465,42684.0,42677.0,0.0005336]
[1644761766751,0.35808607,42683.0,42677.0,0.0005336]
[1644761766951,0.06447,42683.0,42677.0,0.0005336]
[1644761767152,0.0647221,42683.0,42677.0,0.0005336]
[1644761767350,0.0647221,42683.0,42671.0,0.01]
[1644761767549,0.1895572,42675.0,42671.0,0.01]
[1644761767751,0.1913453,42680.0,42675.0,0.5686716]
[1644761767953,0.3,42683.0,42675.0,0.5686716]
[1644761767954,0.0002521,42683.0,42675.0,0.5686716]
[1644761768154,0.0002521,42681.0,42675.0,0.5686716]
[1644761768358,0.0002521,42683.0,42675.0,0.5686716]
[1644761768553,0.33,42684.0,42675.0,0.5686716]
[1644761768753,0.0002521,42683.0,42676.0,0.00053304]
[1644761768952,0.23,42684.0,42676.0,0.00053304]
[1644761769155,0.0002521,42683.0,42676.0,0.00053304]
[1644761769414,0.23,42684.0,42682.0,0.22891398]
[1644761769604,0.23,42684.0,42683.0,0.67258008]
[1644761769804,0.5864,42717.0,42698.0,0.40612214]
[1644761770005,0.19762273,42718.0,42699.0,0.629031]
[1644761770006,0.19814919,42718.0,42699.0,0.629031]
[1644761770204,0.19814919,42718.0,42699.0,0.35]
[1644761770205,0.0949,42700.0,42699.0,0.35]
[1644761770403,0.0949,42700.0,42699.0,0.779031]
[1644761770803,0.0948,42705.0,42699.0,0.479031]
[1644761771111,0.0948,42705.0,42701.0,0.55794498]
[1644761771304,0.0948,42705.0,42702.0,0.05]
[1644761771504,0.00025268,42712.0,42703.0,0.329031]
[1644761771703,0.00025268,42710.0,42702.0,0.35]
[1644761771903,0.21265362,42711.0,42702.0,0.15]
[1644761772104,0.2129063,42711.0,42702.0,0.1]
[1644761772304,0.2129063,42711.0,42703.0,0.3]
[1644761772506,0.2129063,42711.0,42704.0,0.329031]
[1644761772507,0.00025268,42711.0,42704.0,0.329031]
[1644761772706,0.0946,42711.0,42704.0,0.05]
[1644761772906,0.0946,42711.0,42704.0,0.15]
[1644761773148,0.0946,42711.0,42704.0,0.2]
[1644761773550,0.00025268,42712.0,42704.0,0.15]
[1644761773752,0.0945,42712.0,42704.0,0.15]
[1644761774051,0.00025268,42712.0,42702.0,0.05]
[1644761774258,0.24624779,42713.0,42702.0,0.3124288]
[1644761774453,0.00025268,42712.0,42702.0,0.3124288]
[1644761774650,0.24624779,42713.0,42702.0,0.4624288]
[1644761774852,0.00025268,42712.0,42702.0,0.5124288]
[1644761775050,0.24624779,42713.0,42708.0,0.24970408]
[1644761775251,0.00025268,42712.0,42708.0,0.24970408]
[1644761775452,0.24624779,42713.0,42708.0,0.24970408]
[1644761775653,0.00025268,42712.0,42708.0,0.24970408]
[1644761775853,0.24624779,42713.0,42708.0,0.24970408]
[1644761775854,0.0006,42713.0,42708.0,0.24970408]
[1644761776054,0.0945,42722.0,42717.0,0.00170536]
[1644761776260,0.0511,42721.0,42717.0,0.00170536]
[1644761776460,0.0945,42719.0,42717.0,0.00156841]
[1644761776657,0.0945,42719.0,42718.0,0.329031]
[1644761776906,0.0011,42721.0,42717.0,0.00156841]
[1644761778204,0.0945,42718.0,42717.0,0.00156841]
[1644761778808,0.0002529,42720.0,42717.0,0.00156841]
[1644761779004,0.0945,42719.0,42717.0,0.00156841]
[1644761779206,0.6432776,42718.0,42717.0,0.00156841]
[1644761779403,0.6282776,42718.0,42717.0,0.00156841]
[1644761780005,0.25574718,42718.0,42717.0,0.00156841]
[1644761780205,0.07710201,42711.0,42705.0,0.05]
[1644761780405,0.0002529,42717.0,42713.0,0.12485204]
[1644761780648,0.22100008,42718.0,42713.0,0.12485204]
[1644761780848,0.0002529,42717.0,42713.0,0.12485204]
[1644761781049,0.0945,42715.0,42713.0,0.12485204]
[1644761781250,0.06879878,42714.0,42713.0,0.12485204]
[1644761783752,0.37802191,42715.0,42696.0,0.0586]
[1644761783753,0.07602106,42704.0,42696.0,0.0586]
[1644761783959,0.07602106,42704.0,42690.0,0.09912776]
[1644761784151,0.07602106,42704.0,42694.0,0.13490856]
[1644761784422,0.0002529,42706.0,42695.0,0.04657149]
[1644761784615,0.24647184,42702.0,42696.0,0.05]
[1644761784813,0.24672474,42702.0,42694.0,0.04768436]
[1644761785013,0.24672474,42702.0,42694.0,0.0004971]
[1644761785214,0.24672474,42702.0,42693.0,0.05]
[1644761785414,0.24672474,42702.0,42700.0,0.12485204]
[1644761785820,0.3,42701.0,42694.0,0.00050505]
[1644761786018,0.2255052,42695.0,42694.0,0.00050505]
[1644761786217,0.54989058,42695.0,42694.0,0.00050505]
[1644761786415,0.54989058,42695.0,42682.0,0.09735599]
[1644761786624,0.55014348,42695.0,42692.0,0.00050505]
[1644761787015,0.54989058,42695.0,42692.0,0.00050505]
[1644761787216,0.32438538,42695.0,42692.0,0.00050505]
[1644761787518,0.23550222,42695.0,42692.0,0.00050505]
[1644761787719,0.0945,42698.0,42685.0,0.3]
[1644761787916,0.36341524,42700.0,42691.0,0.00050506]
[1644761788551,0.26891524,42700.0,42691.0,0.00050506]
[1644761788950,0.0945,42697.0,42686.0,0.03675]
[1644761789154,0.25646387,42693.0,42685.0,0.26101637]
[1644761789352,0.25646387,42693.0,42689.0,0.05]
[1644761789550,0.0945,42700.0,42689.0,0.05]
[1644761789750,0.0945,42700.0,42695.0,0.66452799]
[1644761790552,0.33035644,42700.0,42695.0,0.66452799]
[1644761791151,0.56035644,42700.0,42695.0,0.66452799]
[1644761791449,0.56035644,42700.0,42695.0,0.66506047]
[1644761791756,0.55535644,42700.0,42695.0,0.66506047]
[1644761792599,0.55535644,42700.0,42695.0,0.66452799]
[1644761792799,0.55535644,42700.0,42695.0,0.66506047]
[1644761792800,0.55560998,42700.0,42695.0,0.66506047]
[1644761792999,0.3195,42700.0,42695.0,0.66506047]
[1644761793800,0.3195,42700.0,42695.0,0.66452799]
[1644761794102,0.3195,42700.0,42695.0,0.66506047]
[1644761794103,0.4352173,42700.0,42695.0,0.66506047]
[1644761794306,0.48496376,42700.0,42695.0,0.66506047]
[1644761794902,0.06905944,42699.0,42695.0,0.66452799]
[1644761795105,0.00025354,42699.0,42695.0,0.66506047]
[1644761795302,0.48496376,42700.0,42696.0,0.00219075]
[1644761795503,0.00025354,42699.0,42696.0,0.00219075]
[1644761795749,0.48496376,42700.0,42696.0,0.00219075]
[1644761795947,0.00025354,42699.0,42696.0,0.00219075]
[1644761796148,0.43496376,42700.0,42696.0,0.00219075]
[1644761796350,0.00025354,42699.0,42696.0,0.00272322]
[1644761796554,0.4352173,42700.0,42696.0,0.00272322]
[1644761796856,0.43496376,42700.0,42696.0,0.00272322]
[1644761797251,0.43496376,42700.0,42696.0,0.00219075]
[1644761797650,0.43496376,42700.0,42696.0,0.00272322]
[1644761798054,0.230322,42700.0,42696.0,0.00272322]
[1644761798653,0.23057554,42700.0,42696.0,0.00272322]
[1644761798855,0.23,42700.0,42696.0,0.00272322]
[1644761799502,0.03,42700.0,42696.0,0.00272322]
[1644761799699,0.11025371,42700.0,42696.0,0.00219075]
[1644761799896,0.11025371,42700.0,42696.0,0.00269949]
[1644761800097,0.03025354,42700.0,42696.0,0.00269949]
[1644761800498,0.03025354,42700.0,42696.0,0.00050874]
[1644761801003,0.03,42700.0,42695.0,0.66671862]
[1644761801199,0.03,42700.0,42696.0,0.00050874]
[1644761801400,0.11627605,42700.0,42696.0,0.00050874]
[1644761802106,0.11627605,42700.0,42695.0,0.66671862]
[1644761802301,0.03,42700.0,42696.0,0.00050874]
[1644761803264,0.03,42700.0,42695.0,0.66671862]
[1644761803463,0.03,42700.0,42696.0,0.00049179]
[1644761803664,0.3145117,42700.0,42696.0,0.00049179]
[1644761803865,0.31454661,42700.0,42696.0,0.00049179]
[1644761804564,0.31454661,42700.0,42695.0,0.66671862]
[1644761804772,0.03025354,42700.0,42696.0,0.00033481]
[1644761804967,0.03,42700.0,42696.0,0.00033481]
[1644761805768,0.03,42700.0,42695.0,0.66452799]
[1644761805972,0.04802581,42704.0,42696.0,0.00035291]
[1644761806169,0.00025374,42700.0,42696.0,0.00035291]
[1644761806369,0.04802581,42704.0,42696.0,0.00035291]
[1644761806571,0.00025374,42703.0,42696.0,0.00035291]
[1644761806898,0.00025374,42703.0,42700.0,0.1]
[1644761807099,0.04802581,42704.0,42700.0,0.1]
[1644761807306,0.00025374,42703.0,42700.0,0.1]
[1644761807502,0.04827955,42704.0,42700.0,0.1]
[1644761807699,0.04802581,42704.0,42700.0,0.1]
[1644761809305,0.29609614,42703.0,42700.0,0.1]
[1644761809504,0.29634988,42703.0,42700.0,0.1]
[1644761809702,0.34634988,42703.0,42700.0,0.1]
[1644761810850,0.33679674,42703.0,42700.0,0.1]
[1644761811350,0.05025374,42703.0,42700.0,0.1]
[1644761811648,0.00025374,42703.0,42700.0,0.1]
[1644761811850,0.04802581,42704.0,42700.0,0.1]
[1644761812051,0.00025374,42703.0,42700.0,0.1]
[1644761812252,0.04827955,42704.0,42700.0,0.1]
[1644761812452,0.00025374,42703.0,42700.0,0.1]
[1644761812659,0.04802581,42704.0,42700.0,0.1]
[1644761812851,0.00025374,42703.0,42700.0,0.1]
[1644761813051,0.04827955,42704.0,42700.0,0.1]
[1644761813253,0.00025374,42703.0,42700.0,0.10053337]
[1644761813451,0.04802581,42704.0,42700.0,0.10053337]
[1644761813657,0.17620952,42720.0,42709.0,0.2]
[1644761813863,0.20364185,42727.0,42724.0,0.15]
[1644761814057,0.20364185,42727.0,42726.0,0.05]
[1644761814417,0.20364185,42727.0,42721.0,0.03982284]
[1644761814418,0.06274185,42727.0,42721.0,0.03982284]
[1644761814606,0.14219113,42727.0,42721.0,0.03982284]
[1644761814806,0.05274185,42727.0,42719.0,0.417023]
[1644761815003,0.05274185,42727.0,42719.0,0.3]
[1644761815210,0.05274185,42727.0,42716.0,0.04322833]
[1644761815404,1.4522936,42731.0,42719.0,0.3]
[1644761815606,0.00052441,42725.0,42719.0,0.3]
[1644761815804,0.25590215,42724.0,42717.0,0.00053648]
[1644761816004,0.24590215,42724.0,42717.0,0.00053648]
[1644761816205,0.24590215,42724.0,42719.0,0.05]
[1644761816408,0.06917851,42718.0,42717.0,0.00053648]
[1644761816608,0.06917851,42718.0,42708.0,0.27077522]
[1644761816609,0.29590215,42724.0,42709.0,0.3]
[1644761816908,0.18863163,42718.0,42717.0,0.00053648]
[1644761817914,0.18863163,42718.0,42715.0,0.00053648]
[1644761818354,0.22923688,42717.0,42715.0,0.00053648]
[1644761818957,0.22923688,42717.0,42709.0,0.05]
[1644761819158,0.07045061,42711.0,42703.0,0.3]
[1644761820058,0.26912463,42706.0,42703.0,0.3]
[1644761820563,0.26912463,42706.0,42705.0,0.00053618]
[1644761821457,0.26912463,42706.0,42702.0,0.05]
[1644761821656,0.26912463,42706.0,42703.0,0.00053619]
[1644761822498,0.26912463,42706.0,42702.0,0.05]
[1644761822901,0.00025501,42710.0,42701.0,0.05854]
[1644761823104,0.00025501,42712.0,42705.0,0.05]
[1644761823300,0.00025501,42721.0,42705.0,0.05]
[1644761823509,0.0769964,42722.0,42711.0,0.05]
[1644761823706,0.0188599,42724.0,42718.0,0.05]
[1644761823707,0.10015501,42721.0,42718.0,0.05]
[1644761823902,0.4565564,42720.0,42714.0,0.00053556]
[1644761824699,0.4565564,42720.0,42707.0,0.4]
[1644761824700,0.4565564,42720.0,42707.0,0.12053556]
[1644761825000,0.22167623,42710.0,42707.0,0.12053556]
[1644761825201,0.22167623,42710.0,42704.0,0.30163555]
[1644761825652,0.22167623,42710.0,42705.0,0.0374588]
[1644761825850,0.22167623,42710.0,42704.0,0.30163555]
[1644761826149,0.22167623,42710.0,42704.0,0.00163555]
[1644761827356,0.22167623,42710.0,42698.0,0.19764696]
[1644761827357,0.8,42703.0,42695.0,0.19773698]
[1644761827556,0.08500069,42695.0,42692.0,0.19773698]
[1644761827752,0.08500069,42695.0,42690.0,0.2]
[1644761827954,0.0999,42692.0,42690.0,0.2]
[1644761828157,0.20948549,42694.0,42690.0,0.2]
[1644761828352,0.25687688,42691.0,42690.0,0.2]
[1644761828754,0.30687688,42691.0,42690.0,0.2]
[1644761829152,0.90426688,42691.0,42690.0,0.2]
[1644761829409,0.70416688,42691.0,42690.0,0.2]
[1644761830301,1.024503,42691.0,42690.0,0.2]
[1644761830709,1.074503,42691.0,42681.0,0.01]
[1644761830902,0.0999,42683.0,42681.0,0.01]
[1644761831103,0.37737368,42682.0,42681.0,0.01]
[1644761831310,0.37737368,42682.0,42675.0,0.01]
[1644761831311,0.7,42681.0,42675.0,0.01]
[1644761831510,1.246,42679.0,42675.0,0.01]
[1644761831702,0.0999,42677.0,42675.0,0.01]
[1644761831905,0.3568675,42681.0,42675.0,0.01]
[1644761831906,0.1982585,42681.0,42675.0,0.01]
[1644761832302,0.0999,42677.0,42675.0,0.01]
[1644761832503,0.05,42677.0,42675.0,0.01]
[1644761832707,0.1,42676.0,42675.0,0.01]
[1644761832900,0.1141099,42676.0,42675.0,0.01]
[1644761833165,0.62649306,42676.0,42675.0,0.01]
[1644761833369,0.62649306,42676.0,42664.0,0.05]
[1644761833370,2.196,42675.0,42664.0,0.05]
[1644761833569,0.05,42666.0,42661.0,0.01]
[1644761833767,0.12973614,42667.0,42661.0,0.01]
[1644761833964,0.0999,42663.0,42661.0,0.01]
[1644761834165,0.2248807,42665.0,42661.0,0.01]
[1644761834166,0.0999,42662.0,42661.0,0.01]
[1644761834366,0.64762014,42662.0,42661.0,0.01]
[1644761834567,0.69762014,42662.0,42654.0,0.2]
[1644761834766,0.108634,42661.0,42659.0,0.00053547]
[1644761835165,0.05,42660.0,42659.0,0.00053547]
[1644761835767,0.34447179,42660.0,42654.0,0.2]
[1644761835970,0.0999,42657.0,42654.0,0.2]
[1644761836167,0.1,42660.0,42654.0,0.2]
[1644761836905,0.23,42657.0,42654.0,0.2]
[1644761837300,0.23,42657.0,42655.0,0.00053551]
[1644761837703,0.10528652,42658.0,42657.0,0.43507496]
[1644761837903,0.37887804,42658.0,42657.0,0.43507496]
[1644761838102,0.38751204,42658.0,42657.0,0.43507496]
[1644761838301,0.48751204,42658.0,42657.0,0.43507496]
[1644761838706,0.65479404,42658.0,42657.0,0.43507496]
[1644761838905,1.95079404,42658.0,42657.0,0.42709717]
[1644761839303,2.18369928,42658.0,42657.0,0.42709717]
[1644761839503,2.02407471,42658.0,42657.0,0.42709717]
[1644761840310,0.2,42649.0,42641.0,0.025]
[1644761840510,1.146,42644.0,42641.0,0.025]
[1644761840756,0.1,42644.0,42641.0,0.025]
[1644761841959,0.05,42646.0,42641.0,0.025]
[1644761842657,0.28332599,42645.0,42641.0,0.01]
[1644761842858,0.33332599,42645.0,42641.0,0.01]
[1644761843258,0.43332599,42645.0,42641.0,0.01053506]
[1644761843662,0.058654,42644.0,42641.0,0.01053506]
[1644761844060,0.43332599,42645.0,42641.0,0.01053506]
[1644761844414,0.43332599,42645.0,42641.0,0.01]
[1644761844810,0.1,42645.0,42641.0,0.01]
[1644761845210,0.20271332,42644.0,42641.0,0.01]
[1644761845408,0.29233774,42643.0,42641.0,0.01]
[1644761845808,0.05,42642.0,42641.0,0.01]
[1644761846009,0.36896551,42642.0,42641.0,0.01]
[1644761846413,0.1,42642.0,42641.0,0.01]
[1644761846812,0.44078789,42642.0,42641.0,0.01]
[1644761847012,0.87373003,42642.0,42641.0,0.01]
[1644761847411,1.15803032,42642.0,42641.0,0.01]
[1644761847613,1.16724243,42642.0,42641.0,0.0001]
[1644761847813,0.86724243,42642.0,42641.0,0.0001]
[1644761848154,0.95412243,42642.0,42641.0,0.0001]
[1644761848654,1.0772339,42642.0,42641.0,0.0001]
[1644761849358,1.654668,42640.0,42639.0,5.08e-06]
[1644761849663,1.246,42635.0,42631.0,0.0001]
[1644761849855,1.246,42635.0,42621.0,0.01]
[1644761849856,0.17420587,42632.0,42621.0,0.01]
[1644761850057,1.246,42626.0,42621.0,0.01]
[1644761850254,0.06598301,42622.0,42621.0,0.01]
[1644761850456,0.06598301,42622.0,42616.0,0.0586]
[1644761850457,1.246,42621.0,42611.0,0.01]
[1644761850657,0.05,42622.0,42601.0,0.01]
[1644761850658,1.446,42614.0,42601.0,0.01]
[1644761850959,0.0999,42603.0,42601.0,0.01]
[1644761851354,0.0999,42602.0,42601.0,0.01]
[1644761852709,0.17288782,42602.0,42601.0,0.01]
[1644761852908,0.0999,42602.0,42601.0,0.01]
[1644761853508,0.1,42607.0,42601.0,0.01]
[1644761853509,0.058707,42604.0,42601.0,0.01]
[1644761853907,0.08353827,42603.0,42601.0,0.01]
[1644761854112,0.15,42607.0,42601.0,0.01]
[1644761854309,0.0999,42604.0,42601.0,0.01]
[1644761854507,0.05,42607.0,42601.0,0.01]
[1644761854709,0.45,42610.0,42601.0,0.01]
[1644761855008,0.06788112,42605.0,42601.0,0.01]
[1644761855208,0.0999,42602.0,42601.0,0.01]
[1644761855650,0.06788112,42605.0,42601.0,0.01]
[1644761856051,0.1499,42606.0,42601.0,0.01]
[1644761856454,0.0999,42606.0,42601.0,0.01]
[1644761856655,0.0999,42606.0,42601.0,0.01053256]
[1644761857053,0.0999,42606.0,42605.0,0.20182943]
[1644761857254,0.0999,42617.0,42605.0,0.20182943]
[1644761857456,0.15975522,42623.0,42606.0,0.3]
[1644761857656,0.0999,42615.0,42607.0,0.05]
[1644761857855,0.0999,42615.0,42609.0,0.00053249]
[1644761858454,0.0999,42612.0,42609.0,0.00053249]
[1644761858854,0.0999,42612.0,42601.0,0.01]
[1644761859055,0.0999,42611.0,42608.0,0.00053249]
[1644761859259,0.06319807,42615.0,42611.0,0.1998]
[1644761859701,0.16309807,42615.0,42611.0,0.1998]
[1644761859903,0.0999,42615.0,42611.0,0.1998]
[1644761860104,0.05,42614.0,42611.0,0.20033247]
[1644761860301,0.38432901,42617.0,42611.0,0.20033247]
[1644761860501,0.43439537,42617.0,42611.0,0.20033247]
[1644761860703,0.2499,42617.0,42611.0,0.20033247]
[1644761860906,0.0949,42617.0,42613.0,0.05]
[1644761861109,2.67626144,42627.0,42612.0,0.3]
[1644761861110,0.0948,42622.0,42612.0,0.3]
[1644761861303,0.0948,42622.0,42613.0,0.00053245]
[1644761861504,0.20866904,42621.0,42613.0,0.26288818]
[1644761861703,0.0948,42622.0,42613.0,0.26288818]
[1644761862304,0.058682,42621.0,42613.0,0.26235573]
[1644761862503,0.058682,42621.0,42615.0,0.00053243]
[1644761863356,0.058684,42620.0,42615.0,0.00053243]
[1644761863556,0.058684,42620.0,42613.0,0.26235573]
[1644761863758,0.0947,42618.0,42613.0,0.26235573]
[1644761863957,0.0947,42618.0,42611.0,0.1998]
[1644761864355,0.0946,42617.0,42611.0,0.1998]
[1644761865156,0.058688,42616.0,42611.0,0.1998]
[1644761865355,0.0946,42617.0,42611.0,0.1998]
[1644761866158,0.31487929,42632.0,42628.0,0.35652235]
[1644761866365,0.5,42631.0,42628.0,0.59321789]
[1644761867009,0.5,42631.0,42628.0,0.35652235]
[1644761867215,0.117335,42632.0,42628.0,0.35652235]
[1644761868008,0.0945,42630.0,42628.0,0.35652235]
[1644761869611,0.15975123,42629.0,42628.0,0.35652235]
[1644761869813,0.20975123,42629.0,42628.0,0.35652235]
[1644761871649,0.5379644,42629.0,42628.0,0.35652235]
[1644761871851,0.30975123,42629.0,42628.0,0.35652235]
[1644761872848,0.61829553,42629.0,42628.0,0.35652235]
[1644761873051,0.51829553,42629.0,42628.0,0.35652235]
[1644761873250,0.61829553,42629.0,42628.0,0.35652235]
[1644761873450,0.30975123,42629.0,42628.0,0.35652235]
[1644761873652,0.62014448,42629.0,42628.0,0.35652235]
[1644761873852,0.30975123,42629.0,42628.0,0.35652235]
[1644761874254,0.38975123,42629.0,42628.0,0.35652235]
[1644761874505,0.28975123,42629.0,42628.0,0.35652235]
[1644761874704,0.38975123,42629.0,42628.0,0.35652235]
[1644761875704,0.39222749,42629.0,42628.0,0.35652235]
[1644761876804,0.67628535,42629.0,42628.0,0.35652235]
[1644761877007,0.57628535,42629.0,42628.0,0.35652235]
[1644761877205,0.39222749,42629.0,42628.0,0.35652235]
[1644761877612,0.69291055,42629.0,42628.0,0.35652235]
[1644761879260,0.74291055,42629.0,42628.0,0.35652235]
[1644761879955,0.44222749,42629.0,42628.0,0.34652635]
[1644761880161,0.44313648,42629.0,42628.0,0.34652635]
[1644761881560,0.28446648,42629.0,42628.0,0.34652635]
[1644761882012,0.18446648,42629.0,42628.0,0.34652635]
[1644761882611,0.36767229,42629.0,42628.0,0.34652635]
[1644761883010,0.28446648,42629.0,42628.0,0.34652635]
[1644761884012,0.22388199,42629.0,42628.0,0.34652635]
[1644761884216,0.18227502,42629.0,42628.0,0.34652635]
[1644761885417,0.18423028,42629.0,42628.0,0.34652635]
[1644761886052,0.058665,42631.0,42630.0,14.42710472]
[1644761886253,0.108665,42631.0,42630.0,14.42710472]
[1644761886454,0.158665,42631.0,42630.0,14.42710472]
[1644761886854,0.276004,42631.0,42630.0,14.42710472]
[1644761887054,0.158665,42631.0,42630.0,14.42710472]
[1644761889158,0.058665,42631.0,42630.0,14.42710472]
[1644761889421,0.0999,42635.0,42630.0,14.42710472]
[1644761889606,0.1,42639.0,42635.0,14.32720472]
[1644761889807,0.20335115,42638.0,42635.0,14.32720472]
[1644761890107,0.0999,42637.0,42635.0,14.32720472]
[1644761890305,0.0999,42637.0,42635.0,14.59504884]
[1644761890711,0.1499,42637.0,42636.0,0.2790256]
[1644761891109,0.1499,42637.0,42636.0,0.26492487]
[1644761891309,0.1499,42637.0,42635.0,14.59504884]
[1644761891507,0.1499,42637.0,42636.0,0.26876199]
[1644761891807,0.1499,42637.0,42635.0,14.59504884]
[1644761892007,0.1499,42637.0,42636.0,0.26433099]
[1644761892208,0.3799,42637.0,42635.0,14.59504884]
[1644761893853,0.3799,42637.0,42636.0,0.26842857]
[1644761894053,0.3299,42637.0,42635.0,14.59504884]
[1644761894254,0.3299,42637.0,42636.0,0.2847741]
[1644761894855,0.3299,42637.0,42635.0,14.59504884]
[1644761895554,1.246,42636.0,42635.0,6.24998086]
[1644761895772,1.246,42636.0,42635.0,0.38472126]
[1644761895773,1.40646993,42636.0,42635.0,0.38472126]
[1644761895957,2.52985198,42636.0,42628.0,0.34652635]
[1644761896160,0.3,42635.0,42628.0,0.34652635]
[1644761896356,0.235,42635.0,42628.0,0.34652635]
[1644761896557,0.31828885,42630.0,42628.0,0.34652635]
[1644761896756,0.05,42629.0,42628.0,0.34652635]
[1644761897611,0.108674,42629.0,42628.0,0.34652635]
[1644761898210,0.41977899,42629.0,42628.0,0.34652635]
[1644761898416,0.51977899,42629.0,42628.0,0.34652635]
[1644761899611,0.208674,42629.0,42628.0,0.34652635]
[1644761899813,0.108674,42629.0,42628.0,0.34652635]
[1644761900013,0.43026038,42630.0,42629.0,0.217348]
[1644761900211,0.75421147,42630.0,42629.0,0.217348]
[1644761901255,0.80421147,42630.0,42629.0,0.217348]
[1644761901455,0.59996709,42630.0,42629.0,0.217348]
[1644761902053,0.317248,42630.0,42629.0,0.217348]
[1644761902455,0.56364818,42630.0,42629.0,0.217348]
[1644761904506,0.317248,42630.0,42629.0,0.217348]
[1644761904709,0.317248,42630.0,42629.0,3.672715]
[1644761904710,0.217248,42630.0,42629.0,3.672715]
[1644761906109,0.317248,42630.0,42629.0,3.672715]
[1644761908755,0.217348,42630.0,42629.0,3.672715]
[1644761912507,0.167348,42630.0,42629.0,3.672715]
[1644761912707,0.117348,42630.0,42629.0,3.672715]
[1644761912909,0.058668,42631.0,42629.0,3.672715]
[1644761913112,0.058668,42631.0,42630.0,0.2648945]
[1644761913307,0.117341,42631.0,42630.0,0.2648945]
[1644761913510,0.117341,42631.0,42629.0,3.672715]
[1644761916058,0.058658,42632.0,42629.0,3.672715]
[1644761916259,0.05,42633.0,42629.0,3.672715]
[1644761916458,0.1,42635.0,42629.0,3.672715]
[1644761916664,0.05,42635.0,42629.0,3.67325154]
[1644761916861,0.27955333,42635.0,42629.0,3.67325154]
[1644761917060,0.058659,42631.0,42629.0,3.67325154]
[1644761917660,0.058659,42631.0,42629.0,3.672715]
[1644761917861,0.117318,42631.0,42629.0,3.672715]
[1644761920610,0.29170506,42630.0,42629.0,3.672715]
[1644761920810,0.34170506,42630.0,42629.0,3.672715]
[1644761921008,0.34828761,42630.0,42629.0,3.672715]
[1644761923957,0.34828761,42630.0,42629.0,3.67260431]
[1644761925163,0.74713062,42630.0,42629.0,3.67260431]
[1644761925362,0.74747543,42630.0,42629.0,3.67260431]
[1644761925561,0.79747543,42630.0,42629.0,3.67260431]
[1644761925764,0.69757543,42630.0,42629.0,3.67260431]
[1644761925965,0.55799593,42630.0,42629.0,3.67260431]
[1644761926165,0.69757543,42630.0,42629.0,3.67260431]
[1644761926366,0.39828761,42630.0,42629.0,3.67260431]
[1644761926570,1.25359459,42629.0,42627.0,7.13e-06]
[1644761926773,6e-05,42625.0,42614.0,0.05020765]
[1644761927014,0.0999,42619.0,42618.0,1.57454006]
[1644761927219,0.44929768,42619.0,42618.0,1.57454006]
[1644761927414,0.49940911,42619.0,42618.0,1.57454006]
[1644761927613,0.2999,42619.0,42618.0,1.57454006]
[1644761927814,0.358602,42619.0,42618.0,1.57454006]
[1644761928216,0.358602,42619.0,42611.0,0.1998]
[1644761928217,1.246,42617.0,42611.0,0.1998]
[1644761928521,1.246,42617.0,42608.0,1.57454006]
[1644761928522,2.146,42611.0,42608.0,1.57454006]
[1644761928716,1.296,42609.0,42608.0,0.56929904]
[1644761928918,1.296,42609.0,42608.0,0.21699304]
[1644761928919,1.91288159,42609.0,42608.0,0.21699304]
[1644761929115,1.91288159,42609.0,42602.0,0.00149991]
[1644761929116,1.246,42607.0,42602.0,0.00170905]
[1644761929315,1.246,42606.0,42603.0,0.00020914]
[1644761929515,0.0999,42604.0,42602.0,0.00170905]
[1644761929717,0.1,42603.0,42601.0,0.01]
[1644761930114,0.117422,42602.0,42601.0,0.00190378]
[1644761930315,0.36529408,42602.0,42601.0,0.00190378]
[1644761930758,0.46529408,42602.0,42601.0,0.00190378]
[1644761931061,0.74914702,42602.0,42601.0,0.00190378]
[1644761931458,0.90895712,42602.0,42601.0,0.00190378]
[1644761931856,0.50127494,42602.0,42601.0,0.00190378]
[1644761932264,0.66108458,42602.0,42601.0,0.00190378]
[1644761932458,0.50127494,42602.0,42601.0,0.00190378]
[1644761932659,0.66108433,42602.0,42601.0,0.00190378]
[1644761932859,0.74427352,42602.0,42601.0,0.00190378]
[1644761933059,2.15008642,42602.0,42601.0,0.00190378]
[1644761933261,1.37180477,42601.0,42595.0,0.00020914]
[1644761933461,0.234903,42600.0,42599.0,0.00053655]
[1644761933659,1.81923633,42600.0,42599.0,0.00053655]
[1644761933860,2.33305883,42600.0,42593.0,0.00214654]
[1644761934064,0.04569024,42599.0,42593.0,0.00214654]